Cogmind - Beta 13 @@@ ROGUE MODE // 2024.04.24 @ 09:30:03 Player: e.v.o Result: Self-destructed Performance ------------- Evolutions (3) 1500 Regions Visited (4) 800 Robots Destroyed (119) 595 Value Destroyed (3570) 3570 Prototype IDs (7) 140 Alien Tech Used (0) 0 Bonus (454) 454 TOTAL SCORE: 7059 Bonus ------- High Alert Combat Kills 454 Cogmind --------- Core Integrity 193/700 Matter 300/300 Energy 300/310 System Corruption 7% Temperature Cool (21) Movement Walking (123) Location -7/Factory Parts ------- > --- POWER (2) -------- Ion Engine Light Nuclear Core > --- PROPULSION (3) --- Carbon-fiber Leg Improved Carbon-fiber Leg Improved Titanium Leg > --- UTILITY (4) ------ Improved Heat Sink Improved Heat Sink Medium Storage Unit Structural Scanner > --- WEAPON (4) ------- Arc Projector Heavy Particle Gun Advanced Beam Rifle Chainsword > --- INVENTORY (10) --- Micro Nuclear Core Aluminum Leg Aluminum Leg Carbon-fiber Leg Flexi-carbon Leg Hacking Suite System Shield Advanced Beam Rifle Autogun Gauss Rifle Peak State ------------ > --- POWER ------------ Deuterium Engine Deuterium Engine > --- PROPULSION ------- Light Treads Advanced Treads Advanced Treads > --- UTILITY ---------- Advanced Heat Sink Medium Storage Unit Weapon Cycler Improved Shield Generator > --- WEAPON ----------- Precision Assault Rifle Advanced Assault Cannon Heavy Missile Launcher Chainsword > --- INVENTORY -------- Deuterium Engine Light Treads Advanced Treads Improved Titanium Leg Hacking Suite System Shield EM Pulse Cannon Great Maul Blade Saw Chainsword [Rating: 47] Favorites ----------- Power Deuterium Engine Engine Deuterium Engine Power Core Light Nuclear Core Propulsion Light Treads Treads Light Treads Leg Improved Titanium Leg Wheel Compact Wheel Utility Medium Storage Unit Device Advanced Heat Sink Storage Medium Storage Unit Processor Target Analyzer Hackware Hacking Suite Protection Light Armor Plating Weapon Chainsword Energy Gun EM Pulse Gun Energy Cannon Ion Cannon Ballistic Gun Light Assault Rifle Ballistic Cannon Advanced Assault Cannon Launcher Heavy Missile Launcher Impact Weapon Great Maul Slashing Weapon Chainsword Build | -11 -10 -9 -8 -7 ------- Run | Yrd Mat Mat Mat Fac Slots Evolved 6 | . . 2 2 2 Power 1 | . . . . 1 Propulsion 1 | . . . . 1 Utility 2 | . . 1 1 . Weapon 2 | . . 1 1 . Parts Attached 142 | 9 11 25 29 68 Power 20 | 1 2 5 2 10 Engine 16 | 1 2 4 2 7 Core 4 | . . 1 . 3 Reactor . | . . . . . Propulsion 37 | 4 2 2 8 21 Treads 29 | . 2 2 8 17 Leg 6 | 2 . . . 4 Wheel 2 | 2 . . . . Hover . | . . . . . Flight . | . . . . . Utility 38 | 2 4 10 8 14 Device 21 | 1 3 4 4 9 Storage 4 | 1 1 1 . 1 Processor 2 | . . . 2 . Hackware 2 | . . . 2 . Protection 9 | . . 5 . 4 Artifact . | . . . . . Weapon 47 | 2 3 8 11 23 Energy Gun 7 | . 1 1 . 5 Energy Cannon 6 | . . 1 3 2 Ballistic Gun 17 | 2 2 5 3 5 Ballistic Cannon 3 | . . . . 3 Launcher 1 | . . . . 1 Special Weapon . | . . . . . Impact Weapon 3 | . . 1 1 1 Slashing Weapon 10 | . . . 4 6 Piercing Weapon . | . . . . . Special Melee Weapon . | . . . . . Unidentified Prototypes 7 | . . 2 . 5 Parts Lost 27 | . 1 4 2 20 Power 4 | . 1 . . 3 Propulsion 5 | . . . . 5 Utility 9 | . . 2 2 5 Weapon 9 | . . 2 . 7 Highest Loss Streak 19 | . 1 2 1 19 To Critical Strikes 1 | . . . . 1 Average Slot Usage (%) 96 | . 99 98 98 94 Engine 11 | . 13 9 9 12 Treads 20 | . 26 22 17 19 Device 12 | . 14 9 9 15 Storage 8 | . 14 11 9 7 Processor 2 | . . . 5 2 Hackware 1 | . . . 6 . Protection 4 | . . 11 4 2 Energy Gun 3 | . 2 9 . 2 Energy Cannon 5 | . . 1 14 2 Ballistic Gun 8 | . 25 15 4 3 Ballistic Cannon 2 | . . . . 6 Impact Weapon 3 | . . 7 2 3 Slashing Weapon 7 | . . . 14 7 Naked Turns . | . . . . . Heaviest Build 58 | 13 25 31 40 58 Greatest Support 64 | 32 46 46 46 64 Greatest Overweight (x) 9 | . . . . 9 Average Overweight (x) . | . . . . . Largest Inventory Capacity 10 | 8 10 10 10 10 Average Capacity 9 | 7 8 10 10 10 Most Carried 10 | 8 10 10 10 10 Average Carried 9 | 5 8 8 9 9 Final Capacity 10 | 8 10 10 10 10 Final Carried 10 | 8 8 10 10 10 Class Distribution -------------------- 41% | Scavenger-Mutant 30% | Mutant 20% | Scavenger-Tank 6% | Tank Dominant Class ---------------- Mutant | -10/Materials Mutant | -9/Materials Scavenger-Mutant | -8/Materials Scavenger-Mutant | -7/Factory Resources | -11 -10 -9 -8 -7 ----------- Run | Yrd Mat Mat Mat Fac Matter Collected 2660 | 252 265 423 343 1377 Remotely 48 | . 48 . . . Salvage Created 4622 | 37 356 837 1045 2347 Parts 241 | 6 37 40 46 112 Haulers Intercepted 6 | . 1 2 . 3 Recyclers Shooed 7 | 1 3 1 2 . Parts Field Recycled . | . . . . . Retrieved Matter . | . . . . . Parts Self-Destructed . | . . . . . Prevented . | . . . . . Kills | -11 -10 -9 -8 -7 ------- Run | Yrd Mat Mat Mat Fac Combat Hostiles Destroyed 81 | . 12 14 16 39 Melee 19 | . . 1 9 9 Guns 38 | . 12 11 1 14 Cannons 12 | . . 1 5 6 AOE 3 | . . 1 . 2 Classes Destroyed 15 | 1 5 3 1 5 Worker 8 | . . 1 . 7 Builder 6 | . . . . 6 Tunneler 2 | 2 . . . . Hauler 6 | . 1 2 . 3 Recycler 9 | . 1 3 2 3 Mechanic 1 | . . . . 1 Operator 3 | . . 1 . 2 Watcher 4 | . 1 . 2 1 Swarmer 19 | . 9 4 . 6 Grunt 42 | . 3 6 12 21 Brawler 1 | . . . 1 . Sentry 8 | . . 4 3 1 Specialist 3 | . . . . 3 Hunter 1 | . . . . 1 Programmer 7 | . . . . 7 Best Kill Streak 8 | 1 3 6 4 8 Combat Bots Only 6 | . 3 5 3 6 Max Kills in Single Turn 2 | 1 2 2 2 2 Gunslinging 1 | . 1 1 . . Exploded 1 | . . 1 . 1 Melee 1 | . . 1 1 1 Uniques/NPCs Destroyed . | . . . . . Combat | -11 -10 -9 -8 -7 -------- Run | Yrd Mat Mat Mat Fac Hostile Shots Fired 635 | . 74 108 73 380 Missed 163 | . 20 28 12 103 Damage Taken 6166 | . 490 998 967 3711 Core 848 | . 109 113 119 507 Absorbed by Shields 409 | . . . . 409 Regen/Repaired (Parts) 73 | . . . 73 . Core Remaining (%) 76 | 100 56 71 78 . Volleys Fired 227 | 12 49 55 29 82 Largest 4 | 2 2 3 4 3 Hottest 174 | 40 40 114 174 171 Shots Fired 489 | 24 98 115 53 199 Gun 367 | 24 98 113 14 118 Cannon 118 | . . 2 39 77 Launcher 4 | . . . . 4 Special . | . . . . . Kinetic 353 | 24 98 70 14 147 Thermal 88 | . . 20 39 29 Explosive 4 | . . . . 4 Electromagnetic 44 | . . 25 . 19 Robot Hit Streak 16 | 8 16 14 9 13 Robot Miss Streak 11 | 3 11 4 3 5 Penetration Max . | . . . . . Secondary Targets 7 | . 4 3 . . Max Gunslinging Chain 1 | . 1 1 . . Shots Hit Robots 396 | 15 57 82 69 173 Core Hits 164 | 4 26 32 23 79 Critical Kills 4 | . 1 . 3 . Critical Parts Destroyed 7 | . 1 1 . 5 Critical Strikes 25 | . 2 1 8 14 Burn 1 | . . . . 1 Meltdown 1 | . . . 1 . Destroy 2 | . 2 . . . Blast 2 | . . . . 2 Smash 8 | . . 1 2 5 Sever 11 | . . . 5 6 Melee Attacks 153 | . . 18 51 84 Impact 72 | . . 18 9 45 Slashing 81 | . . . 42 39 Piercing . | . . . . . Sneak Attacks 13 | . . 2 1 10 Combat Hostiles . | . . . . . Follow-up Attacks 14 | . . . 7 7 Damage Inflicted 9896 | 118 460 1625 2089 5604 Guns 3467 | 118 460 1106 156 1627 Cannons 1747 | . . 21 568 1158 Explosions 463 | . . 145 . 318 Melee 4199 | . . 349 1349 2501 Ramming 20 | . . 4 16 . Kinetic 3647 | 118 460 721 156 2192 Thermal 1321 | . . 313 568 440 Explosive 280 | . . . . 280 Electromagnetic 429 | . . 238 . 191 Impact 1837 | . . 349 236 1252 Slashing 2362 | . . . 1113 1249 Piercing . | . . . . . Highest Corruption 7 | . . . . 7 Average Corruption 2 | . . . . 2 Corruption Purged 3 | . . . . 3 Corruption Blocked . | . . . . . Effects 25 | . . . . 25 Message Errors 5 | . . . . 5 Matter Fused 3 | . . . . 3 Heat Flow Errors 8 | . . . . 8 Energy Discharges 5 | . . . . 5 Data Loss (minor) 2 | . . . . 2 Misfires 2 | . . . . 2 Overload Shots . | . . . . . Overflow Damage 891 | . . 141 134 616 Projectiles 38 | . . . 15 23 Explosions 16 | . . . . 16 Melee 837 | . . 141 119 577 Knockbacks 19 | . . . 1 18 Impact 7 | . . . 1 6 Kinetic 10 | . . . . 10 Secondary 2 | . . . . 2 Self-Inflicted Damage 110 | . . . . 110 Shots 2 | . . . . 2 Rammed 3 | . . 1 2 . Targets Rammed 4 | . . 2 2 . Kicked . | . . . . . Crushed 1 | . . 1 . . Highest Temperature 292 | . 54 266 292 271 Average Temperature 50 | . 15 49 70 60 Received Heat Transfer 1800 | . 126 324 576 774 Effects 2 | . . 2 . . Interference 2 | . . 2 . . Siege Activations . | . . . . . Robots Corrupted 1 | . . . . 1 Combat Hostiles 1 | . . . . 1 Parts Fried 13 | . . 1 . 12 Impact Corruptions 26 | . . 3 1 22 Robots Melted 1 | . . . 1 . Combat Hostiles 1 | . . . 1 . Parts Melted 6 | . . . 1 5 Heat Transferred 2409 | . . 657 925 827 Parts Sabotaged . | . . . . . Parts Stolen . | . . . . . Parts Stripped . | . . . . . Power Chain Reactions 3 | . . 2 . 1 Alert | -11 -10 -9 -8 -7 ------- Run | Yrd Mat Mat Mat Fac Peak Influence 990 | 10 310 375 397 990 Initial 180 | . 6 46 94 180 Average 266 | 2 133 185 203 382 Maximum Alert Level 3 | . 1 1 1 3 Low Security (%) 42 | 100 75 51 47 24 Level 1 43 | . 25 48 52 43 Level 2 6 | . . . . 15 Level 3 6 | . . . . 15 Level 4 . | . . . . . Level 5 . | . . . . . High Security . | . . . . . Max Security . | . . . . . Squads Dispatched 18 | . 1 1 1 15 Investigation 6 | . . . 1 5 Extermination 4 | . . . . 4 Reinforcement 8 | . 1 1 . 6 Assault . | . . . . . Garrison . | . . . . . Intercept . | . . . . . Searches Triggered . | . . . . . Construction Impeded 1 | . . . . 1 Haulers Reinforced 2 | . . . . 2 Active Scanning Responses . | . . . . . Cargo Convoy Interrupts 1 | . . . . 1 Stealth | -11 -10 -9 -8 -7 --------- Run | Yrd Mat Mat Mat Fac Distress Signals 9 | . 1 2 2 4 Communications Jammed . | . . . . . Distress Signals . | . . . . . Times Spotted 143 | . 18 24 26 75 Peak Tracking Total 15 | . 4 5 5 15 Tactical Retreats 9 | . . 1 3 5 Traps | -11 -10 -9 -8 -7 ------- Run | Yrd Mat Mat Mat Fac Traps Triggered 3 | . . 1 1 1 Indirectly . | . . . . . Trap Hack Attempts . | . . . . . Triggered . | . . . . . Disarmed . | . . . . . Reprogrammed . | . . . . . Reused . | . . . . . Traps Extracted . | . . . . . Installed . | . . . . . Triggered . | . . . . . Machines | -11 -10 -9 -8 -7 ---------- Run | Yrd Mat Mat Mat Fac Machines Disabled 8 | . . 1 1 6 Max in Single Turn 4 | . . 1 1 4 Machines Repaired . | . . . . . Machines Dismantled . | . . . . . Machines Sabotaged . | . . . . . Overloaded Fab Kills . | . . . . . Hacking | -11 -10 -9 -8 -7 --------- Run | Yrd Mat Mat Mat Fac Machines Accessed 16 | . 1 4 2 9 Terminals 8 | . 1 3 . 4 Fabricators 2 | . . . . 2 Repair Stations 3 | . . . 1 2 Recycling Units 1 | . . 1 . . Scanalyzers 2 | . . . 1 1 Garrison Access . | . . . . . Total Hacks 44 | . 1 10 8 25 Successful 26 | . 1 6 7 12 Failed 18 | . . 4 1 13 Catastrophic 3 | . . 1 . 2 Database Lockouts . | . . . . . Manual . | . . . . . Terminals 22 | . 1 8 . 13 Fabricators 5 | . . . . 5 Repair Stations 7 | . . . 2 5 Recycling Units 2 | . . 2 . . Scanalyzers 8 | . . . 6 2 Garrison Access . | . . . . . Terminal Hacks 10 | . 1 4 . 5 Robot Analysis 1 | . . 1 . . Open DSF 1 | . . . . 1 Alert Level 1 | . 1 . . . Locate Traps 3 | . . . . 3 Maintenance Status 1 | . . 1 . . Transport Status 1 | . . 1 . . Zone Layout 2 | . . 1 . 1 Fabricator Hacks 5 | . . . . 5 Network Status 1 | . . . . 1 Load Schematic 2 | . . . . 2 Build 2 | . . . . 2 Repair Station Hacks 4 | . . . 2 2 Scan Component 3 | . . . 1 2 Repair 1 | . . . 1 . Recycling Unit Hacks 2 | . . 2 . . Retrieve Matter 1 | . . 1 . . Retrieve Components 1 | . . 1 . . Scanalyzer 5 | . . . 5 . Insert Component 3 | . . . 3 . Analyze 2 | . . . 2 . Garrison Access Hacks . | . . . . . Unauthorized Hacks . | . . . . . Terminals . | . . . . . Fabricators . | . . . . . Repair Stations . | . . . . . Recycling Units . | . . . . . Scanalyzers . | . . . . . Garrison Access . | . . . . . Data Cores Recovered 1 | . . . . 1 Used 1 | . . . . 1 Hacking Detections 14 | . . 4 1 9 Full Trace Events 5 | . . . . 5 Feedback Events . | . . . . . Feedback Blocked . | . . . . . Robot Schematics Acquired . | . . . . . Robots Built . | . . . . . Authchips . | . . . . . Time . | . . . . . Total Robot Build Rating . | . . . . . Part Schematics Acquired 2 | . . . 2 . Parts Built 3 | . . . . 3 Authchips . | . . . . . Time 168 | . . . . 168 Total Part Build Rating 12 | . . . . 12 Parts Repaired 1 | . . . 1 . Time 38 | . . . 38 . Parts Recycled . | . . . . . Recycled Matter . | . . . . . Retrieved Matter 190 | . . 190 . . Retrieved Components 9 | . . 9 . . Parts Scanalyzed 2 | . . . 2 . Part Schematics Acquired 2 | . . . 2 . Parts Damaged . | . . . . . Bothacking | -11 -10 -9 -8 -7 ------------ Run | Yrd Mat Mat Mat Fac Used RIF Installer . | . . . . . Robots Hacked . | . . . . . Non-combat . | . . . . . Combat . | . . . . . Robot Hacks Applied . | . . . . . Relay Couplers Released . | . . . . . Fabnet Peak Effective % . | . . . . . Robots Rewired . | . . . . . Allies Hacked . | . . . . . Hacks Repelled . | . . . . . Allies | -11 -10 -9 -8 -7 -------- Run | Yrd Mat Mat Mat Fac Total Allies . | . . . . . Largest Group . | . . . . . Highest-Rated Group . | . . . . . Highest-Rated Ally . | . . . . . Total Orders . | . . . . . Ally Attacks . | . . . . . Total Damage . | . . . . . Kills . | . . . . . Allies Corrupted . | . . . . . Allies Melted . | . . . . . Intel | -11 -10 -9 -8 -7 ------- Run | Yrd Mat Mat Mat Fac Robot Analysis Total 1 | . . 1 . . Derelict Logs Recovered . | . . . . . Drone Launches . | . . . . . Drone Recoveries . | . . . . . Exploration | -11 -10 -9 -8 -7 ------------- Run | Yrd Mat Mat Mat Fac Turns Passed 4729 | 124 472 877 1189 2067 Spaces Moved 2057 | 72 199 371 544 871 Core 8 | 7 . . . 1 Treads 1877 | . 179 371 544 783 Legs 104 | 17 . . . 87 Wheels 68 | 48 20 . . . Hover . | . . . . . Flight . | . . . . . Fastest Speed 50 | 50 100 160 152 123 Average Speed 151 | 99 153 160 153 151 Slowest Speed 500 | 120 160 160 160 500 Overloaded Moves . | . . . . . Propulsion Burnouts . | . . . . . Robots Hopped . | . . . . . Cave-ins Triggered . | . . . . . Exploration Rate (%) 26 | 6 38 32 37 21 Regions Visited 4 Branch Regions . Pre-discovered Areas . | . . . . . Known Exits Taken . | . . . . . Unknown Exits Taken 4 | 1 1 1 1 . Scrap Searched . | . . . . . Spaces Dug 23 | . . 9 7 7 Terrain Destroyed 124 | . . 10 13 101 Melee 23 | . . 9 7 7 Projectile 18 | . . . 6 12 AOE 83 | . . 1 . 82 Terrain Rammed . | . . . . . Walls Destroyed . | . . . . . Machines Disabled . | . . . . . Actions | -11 -10 -9 -8 -7 --------- Run | Yrd Mat Mat Mat Fac Total 3035 | 100 289 520 791 1335 Wait 310 | . 7 17 95 191 Move 2053 | 71 198 370 543 871 Hop . | . . . . . Pick Up 75 | 8 11 14 21 21 Fast Attach 40 | 7 . 7 7 19 Attach 27 | . 2 4 8 13 Detach 1 | . . . 1 . Swap 76 | 2 9 15 14 36 Drop 89 | . 13 18 30 28 Fire 227 | 12 49 55 29 82 Melee 133 | . . 18 41 74 Ram . | . . . . . Kick . | . . . . . Crush 4 | . . 2 2 . Escape Stasis . | . . . . . Rewire . | . . . . . Trap . | . . . . . Miscellaneous . | . . . . . Route ------- -11/Scrapyard -10/Materials -9/Materials -8/Materials -7/Factory History --------- Turn | Location | Event 5 | -11/Scrapyard | Discovered new exit (range 15) 125 | -11/Scrapyard | Entered Materials 304 | -10/Materials | Build established: Mutant 532 | -10/Materials | Discovered new exit (range 15) 597 | -10/Materials | Entered another Materials area 597 | -9/Materials | Evolved 2 slots: Utility x1, Weapon x1 1317 | -9/Materials | Discovered new exit (range 15) 1474 | -9/Materials | Entered another Materials area 1474 | -8/Materials | Evolved 2 slots: Utility x1, Weapon x1 2231 | -8/Materials | Repaired Adv. Treads 2357 | -8/Materials | Build established: Scavenger-Mutant 2627 | -8/Materials | Discovered new exit (range 3) 2663 | -8/Materials | Entered Factory 2663 | -7/Factory | Evolved 2 slots: Power x1, Propulsion x1 3028 | -7/Factory | Fabricated Chainsword? 3240 | -7/Factory | Fabricated Hvy. Missile Launcher? 4406 | -7/Factory | Cargo convoy interrupted 4533 | -7/Factory | Core integrity fell below 50% 4580 | -7/Factory | Lost 19 parts (3p5n4u7w) 4730 | -7/Factory | Self-destructed Last Messages --------------- 04703_ K-01 Serf collects debris. 04714_ R-06 Scavenger collects Flexi-carbon Leg. 04717_ Dropped Imp. Shield Generator. 04717_ Acquired 30 matter. 04717_ R-06 Scavenger collects Angular Momentum Engine. 04718_ Sneak attack on R-06 Scavenger. 04718_ R-06 Scavenger destroyed. 04719_ K-01 Serf collects debris. 04723_ Acquired Flexi-carbon Leg. 04724_ Slug penetrates Wall. 04724_ Knocked back. 04726_ K-01 Serf collects debris. 04729_ H-61 Shepherd calls for reinforcements. 04729_ ALERT: Hostile activity reported, dispatching reinforcements to area. 04729_ Knocked back. 04729_ K-01 Serf collects debris. 04729_ U-05 Engineer builds a Wall. 04730_ R-06 Scavenger collects Flexi-carbon Leg. Map ----- +----------------------------------------------------+ | ?????????????????????????????????????????????????? | | ?????????????????????????????????????????????????? | | ?????????????????????????????????????????????????? | | ?????????????????????????????????????????????????? | | ?????????????????????????????????????????????????? | | ?????????????????????????????????????????????????? | | ?????????????????????????????????????????????????? | | ?????????????????????????????????????????????????? | | ?????????????????? ????????????????????????????? | | ????????????????? ????????????????????????????? | | ????????????????? ???????????????????????????? | | ???????????????? #??? ??????????????????????? | | ????????????????## ##??? ??????????????????????? | | ????????????????## ##### #???###### ???????????? | | ????????????????## #####k#???#######???????????? | | ????????????????## ### H ## #####??? | | ????????????????## ### H"""" """## #### ??? | | ????????????????## ### """" """## ?? | | ????????????????## ### """" "## ??? | | ???????????#????## ### """" "F"## ???? | | ????? ## ##### % ### = """## ????? | | ?????#############k ###! % ## """????? | | ????? # |=#!% % %##;r############ """????? | | ????? # !=%=#[%%% uu %%[! u """????? | | ????? # #%= % %k[! """ """? | | ????? #"" !*! +== %% @= | | ????? #"" |= % # %!% =! * | | ????? #"" !! #!= ! | | ????? #""" =!!#% %! %%##########################? | | ????? #""" !*|##################################? | | ????? # ## T #???????????????????? | | ?????###/######## #???????????????????? | | ????? # ######## """"""" !#???????????????????? | | ?????? # ??????## """"""" #???????????????????? | | ?????? # ???????# """"""" #???????????????????? | | ????????????????# """"""" #???????????????????? | | ????????????????# #???????????????????? | | ????????????????#########+####???????????????????? | | ????????????########## #???????????????????? | | ??????????? ! #???????????????????? | | ?????????? #???????????????????? | | ??????????? ^^ T! #???????????????????? | | ??????????? ^^ #???????????????????? | | ??????????? = #???????????????????? | | ????????????########## #???????????????????? | | ?????????????????????### ###???????????????????? | | ???????????????????????# #?????????????????????? | | ???????????????????????# #?????????????????????? | | ???????????????????????# #?????????????????????? | | ????????????#######???## ##????????????????????? | +----------------------------------------------------+ Best States ------------- Heat Dissipation 62 Energy Generation 23 Energy Capacity 450 Matter Stores 300 Matter Capacity 300 Sight Range 16 Robot Scan Range 15 Terrain Scan Density 10 Armor Coverage 300 Weapon Cycling 15 Evasion (%) 55 Target Analysis 5 Recoil Reduction 3 Offensive Hacking 10 Defensive Hacking 10 Item Schematics ----------------- Chainsword | -8/Materials | Scanalyzed Hvy. Missile Launcher | -8/Materials | Scanalyzed Robot Schematics ------------------ None Fabricated ------------ Chainsword | x2 | -7/Factory Hvy. Missile Launcher | x1 | -7/Factory Alien Tech Used ----------------- None Achievements -------------- None Challenges ------------ None Game ------ Seed CannonRegenerativeTube Manual? 0 Play Time 00:52:52 Cumulative 38.8 hours Start 2024.04.24 @ 08:38:30 End 2024.04.24 @ 09:30:03 Sessions 1 Manual Loads 0 Difficulty Rogue Special Mode None Game No. 60 Rogue 44 Adventurer 16 Explorer 0 Win Type - Total 0 Types 0/0/0/0/0/0/0/0/0 Lore% 13 Gallery% 32 Achievement% 22 Wizard Run 0 Options --------- Layout 2 ASCII 0 Keyboard 0 Movement Mouse Keybinds 0 Fullscreen 2 Font 24/Smallcaps Map View 50x44 Zoom Use 0% Tactical HUD 1 Map Filters NONE Filters NONE Steam 1 RUN: c72b29e1-f8da-46a0-8bb2-2b452b746b86